bitfinex/quotes_ETHUSD_20250511
["timestamp","ask_amount","ask_price","bid_price","bid_amount"]
[1747004484754,0.05,2505.4,2504.3,30.81228907]
[1747004484955,0.05,2505.4,2504.3,81.31228907]
[1747004485557,0.05,2505.4,2504.3,81.86454368]
[1747004485781,0.05,2505.4,2504.3,31.36454368]
[1747004486909,0.05,2505.4,2504.9,2.948]
[1747004487066,0.05,2505.4,2505.1,8.55]
[1747004487258,0.05,2505.4,2505.3,8.55]
[1747004487597,0.05,2505.4,2505.3,59.05]
[1747004487797,0.05,2505.4,2505.3,47.70422]
[1747004487967,0.05,2505.4,2505.3,13.323]
[1747004488172,0.878,2505.4,2505.3,13.323]
[1747004488377,0.878,2505.4,2505.3,23.876961]
[1747004488567,0.878,2505.4,2505.3,20.532105]
[1747004488969,0.878,2505.4,2505.3,10.662]
[1747004489779,0.05,2505.4,2505.3,12.5443]
[1747004489965,0.05,2505.4,2505.3,74.64191295]
[1747004490164,0.05,2505.4,2505.3,74.95849392]
[1747004490412,0.05,2505.4,2505.3,24.45849392]
[1747004490709,0.05,2505.4,2505.3,74.95849392]
[1747004491085,0.05,2505.4,2505.3,75.51834415]
[1747004491284,0.05,2505.4,2505.3,25.01834415]
[1747004491486,0.05,2505.4,2505.3,75.51834415]
[1747004492305,0.05,2505.4,2505.3,25.01834415]
[1747004492507,0.05,2505.4,2505.3,75.51834415]
[1747004493807,0.05,2505.4,2505.3,71.50159392]
[1747004494007,0.05,2505.4,2505.3,76.82259392]
[1747004494174,0.05,2505.4,2505.3,25.71988097]
[1747004494898,0.05,2505.4,2505.3,26.32259392]
[1747004495228,0.05,2505.4,2505.3,76.82259392]
[1747004496119,0.05,2505.4,2505.3,77.60599392]
[1747004497021,0.05,2505.4,2505.3,80.56384415]
[1747004497197,0.05,2505.4,2505.3,27.10599392]
[1747004497928,0.05,2505.4,2505.3,27.66584415]
[1747004498239,0.05,2505.4,2505.3,30.06384415]
[1747004498394,0.05,2505.4,2505.3,27.10599392]
[1747004498787,0.05,2505.4,2505.3,72.28499392]
[1747004499143,0.05,2505.4,2505.3,78.16484415]
[1747004499305,0.05,2505.4,2505.3,17.46484415]
[1747004499705,0.05,2505.4,2505.3,16.90499392]
[1747004499905,0.05,2505.4,2505.3,67.96484415]
[1747004500431,0.05,2505.4,2505.3,16.90499392]
[1747004500929,0.05,2505.4,2505.3,49.24310197]
[1747004501334,0.05,2505.4,2505.3,15.51888097]
[1747004501636,0.05,2505.4,2505.3,14.96888097]
[1747004501830,0.05,2505.4,2505.3,13.63658097]
[1747004502033,0.05,2505.4,2505.3,14.24658097]
[1747004503044,0.05,2505.4,2505.3,11.58758097]
[1747004503237,0.05,2505.4,2505.3,13.69658097]
[1747004504236,0.05,2505.4,2505.3,29.13715497]
[1747004504448,0.05,2505.4,2505.3,13.69658097]
[1747004504624,0.05,2505.4,2505.3,11.03758097]
[1747004504799,0.05,2505.4,2505.3,13.69558097]
[1747004505211,0.05,2505.4,2505.3,13.379]
[1747004507241,0.05,2505.4,2505.3,29.873264]
[1747004507439,0.05,2505.4,2505.3,13.379]
[1747004511360,0.05,2505.4,2505.3,13.69558097]
[1747004511554,0.05,2505.4,2505.3,29.47373297]
[1747004511717,0.05,2505.4,2505.3,29.48493297]
[1747004512123,0.05,2505.4,2505.3,13.69558097]
[1747004514119,4.79427862,2505.4,2505.3,12.39829097]
[1747004514417,0.8029,2505.4,2505.3,8.06]
[1747004514617,0.8029,2505.4,2505.3,32.742524]
[1747004514815,0.8029,2505.4,2505.3,32.682524]
[1747004515032,4.79427862,2505.4,2505.3,19.334043]
[1747004515233,4.79427862,2505.4,2505.3,11.641606]
[1747004515631,4.79427862,2505.4,2505.3,8.0]
[1747004516331,0.8029,2505.4,2505.3,8.0]
[1747004516527,0.8029,2505.4,2505.3,21.397265]
[1747004517437,0.8029,2505.4,2505.3,20.004518]
[1747004517764,0.8029,2505.4,2505.3,8.0]
[1747004518064,0.8029,2505.4,2505.3,20.004518]
[1747004519318,0.05,2505.4,2505.3,10.5319518]
[1747004519724,0.05,2505.4,2505.3,42.8928058]
[1747004520053,0.05,2505.4,2505.3,55.7257698]
[1747004520227,0.05,2505.4,2505.3,61.89853277]
[1747004521366,0.05,2505.4,2505.3,11.39853277]
[1747004521753,0.05,2505.4,2505.3,60.94713577]
[1747004522067,0.05,2505.4,2505.3,61.89853277]
[1747004522468,0.05,2505.4,2505.3,11.39853277]
[1747004524123,0.05,2505.4,2505.3,13.50453277]
[1747004524334,0.05,2505.4,2505.3,10.97258097]
[1747004524534,0.05,2505.4,2505.3,28.13836097]
[1747004524735,0.05,2505.4,2505.3,28.21596097]
[1747004525247,0.05,2505.4,2505.3,10.97258097]
[1747004525451,0.05,2505.4,2505.3,12.33563907]
[1747004527377,0.8743,2505.4,2504.7,0.31658097]
[1747004527554,3.99188021,2505.1,2504.8,2.656]
[1747004527949,4.81663471,2504.8,2504.7,2.97458097]
[1747004528149,4.81663471,2504.8,2504.7,13.314]
[1747004529440,4.81663471,2504.8,2504.7,10.658]
[1747004529679,4.81663471,2504.8,2504.7,5.314]
[1747004532378,0.8243,2504.8,2504.7,5.314]
[1747004532579,0.05,2505.4,2504.9,0.55]
[1747004532797,0.05,2505.4,2505.1,9.3399]
[1747004532955,0.05,2505.4,2505.3,8.0]
[1747004533161,0.05,2505.4,2505.3,52.82461651]
[1747004533473,0.05,2505.4,2505.3,17.41522751]
[1747004533641,0.05,2505.4,2505.3,13.313]
[1747004533843,0.05,2505.4,2505.3,32.568149]
[1747004534145,0.05,2505.4,2505.3,35.644028]
[1747004534370,0.05,2505.4,2505.3,13.313]
[1747004534884,0.05,2505.4,2505.1,0.55]
[1747004535069,4.0413917,2505.4,2505.3,8.0]
[1747004535385,0.05,2505.4,2505.3,8.0]
[1747004535742,0.8521,2505.4,2505.3,10.655]
[1747004535942,4.84347862,2505.4,2505.3,8.0]
[1747004536244,4.84347862,2505.4,2505.3,17.416702]
[1747004536444,4.84347862,2505.4,2505.3,8.0]
[1747004536956,0.8521,2505.4,2505.3,8.0]
[1747004537683,4.84347862,2505.4,2505.3,8.0]
[1747004537989,4.84347862,2505.4,2505.3,11.883455]
[1747004538143,3.99185661,2505.1,2505.0,2.97158097]
[1747004538478,3.99185661,2505.1,2505.0,10.655]
[1747004539251,3.99176513,2505.2,2505.1,8.0]
[1747004539665,3.99176513,2505.2,2504.8,0.31658097]
[1747004539666,0.8521,2505.4,2504.5,0.31658097]
[1747004539886,4.84363371,2505.4,2504.7,8.55]
[1747004540090,4.84363371,2505.4,2504.9,8.0]
[1747004540394,4.84363371,2505.4,2505.1,8.0]
[1747004540604,4.84363371,2505.4,2505.3,8.0]
[1747004540775,4.84363371,2505.4,2505.3,7.95]
[1747004542178,0.05,2505.4,2505.3,7.95]
[1747004542903,0.05,2505.4,2505.0,0.55]
[1747004543119,0.05,2505.4,2505.1,0.03991377]
[1747004543305,0.05,2505.4,2505.3,8.0]
[1747004543812,0.05,2505.4,2505.3,45.48122276]
[1747004544018,0.05,2505.4,2505.3,10.21529926]
[1747004544177,0.05,2505.4,2505.3,10.25521031]
[1747004545784,3.99153793,2505.3,2505.2,8.0]
[1747004545970,4.77779726,2505.2,2505.1,0.31658097]
[1747004547103,4.77779726,2505.2,2503.4,1.95359572]
[1747004547104,0.8079,2504.7,2503.9,1.13018097]
[1747004547308,3.99337584,2504.2,2504.0,2.97058097]
[1747004547503,4.80042112,2504.7,2504.1,8.0]
[1747004547684,3.99274051,2504.6,2504.1,59.86645132]
[1747004547876,3.99274051,2504.6,2504.3,8.0]
[1747004548210,3.99274051,2504.6,2504.5,8.0]
[1747004548364,3.99274051,2504.6,2504.0,2.653]
[1747004548365,3.99345074,2504.1,2504.0,2.653]
[1747004548798,3.99345074,2504.1,2504.0,10.653]
[1747004549006,3.99345074,2504.1,2504.0,8.0]
[1747004549501,0.8083,2504.6,2504.1,8.0]
[1747004549806,4.80103032,2504.6,2504.3,8.0]
[1747004550010,0.8083,2504.6,2504.5,8.0]
[1747004550171,0.8083,2504.6,2504.5,6.276]
[1747004550370,3.99290432,2504.5,2504.2,8.0]
[1747004550684,3.99245374,2504.8,2504.2,4.59637571]
[1747004551010,3.9926562,2504.6,2504.3,0.03992686]
[1747004551568,3.99341564,2504.2,2503.8,0.31658097]
[1747004551791,3.99317884,2504.3,2503.9,0.31658097]
[1747004552009,0.7697,2504.6,2503.9,0.31658097]
[1747004552920,3.99324292,2504.3,2503.9,0.31658097]
[1747004554119,3.99330757,2504.2,2503.9,0.31658097]
[1747004554463,4.82237926,2504.1,2503.9,0.31658097]
[1747004554739,3.99343382,2504.2,2503.9,0.31658097]
[1747004554740,3.99332002,2504.2,2503.9,0.31658097]
[1747004554892,3.99332006,2504.2,2503.9,0.31658097]
[1747004556134,4.82208491,2504.3,2503.9,0.31658097]
[1747004556438,3.99345479,2504.1,2503.8,10.96958097]
[1747004557013,3.99336769,2504.2,2503.8,10.96958097]
[1747004557521,3.99336769,2504.2,2504.0,8.0]
[1747004562643,0.8289,2504.3,2504.0,8.0]
[1747004562947,4.19959017,2505.3,2504.2,8.0]
[1747004562948,3.99218024,2504.9,2504.2,8.0]
[1747004563158,3.99247798,2504.8,2504.4,8.0]
[1747004563357,3.99250616,2504.7,2504.6,8.0]
[1747004563505,3.99250616,2504.7,2504.4,8.0]
[1747004567507,3.99270368,2504.6,2504.4,8.0]
[1747004568549,4.80870463,2504.7,2504.4,8.0]
[1747004568550,3.99281293,2504.5,2504.4,8.0]
[1747004568757,3.99276175,2504.6,2504.4,8.0]
[1747004571672,3.99257982,2504.7,2504.4,8.0]
[1747004573562,3.99267451,2504.6,2504.4,8.0]
[1747004575794,3.99254228,2504.7,2504.4,8.0]
[1747004576801,3.99190374,2505.1,2504.4,9.71876718]
[1747004577028,3.99219251,2504.9,2504.4,8.31658097]
[1747004577176,3.99234809,2504.8,2504.4,8.31658097]
[1747004578265,3.99221798,2504.9,2504.4,8.31658097]
[1747004578708,4.79048625,2505.0,2504.5,0.80432412]
[1747004578880,0.7984,2505.0,2504.5,0.80432412]
[1747004580005,4.79049804,2505.0,2504.5,0.80432412]
[1747004580211,4.79049804,2505.0,2504.5,1.12090509]
[1747004580393,4.79049804,2505.0,2504.6,8.0]
[1747004582853,4.0413961,2505.4,2504.6,8.0]
[1747004582854,0.8819,2505.4,2504.7,0.55]
[1747004582994,4.0414223,2505.4,2504.8,0.80371629]
[1747004583330,3.991927,2505.1,2504.9,10.96558097]
[1747004583810,3.99201596,2505.0,2504.9,10.96558097]
[1747004584010,3.99201596,2505.0,2504.9,11.03558097]
[1747004584207,3.99194467,2505.1,2504.9,11.03558097]
[1747004584434,0.05,2505.4,2505.0,0.8243]
[1747004584592,0.05,2505.4,2505.0,0.86421485]
[1747004584792,0.05,2505.4,2505.0,2.10919443]
[1747004585032,0.05,2505.4,2505.3,1.3396]
[1747004585236,0.05,2505.4,2505.3,59.40648808]
[1747004585402,1.40204911,2506.9,2505.3,59.40648808]
[1747004585403,0.8267,2506.8,2505.6,2.948]
[1747004585609,0.8267,2506.8,2505.9,0.7896]
[1747004585837,3.98956995,2506.6,2506.1,8.55]
[1747004585990,3.98932639,2506.7,2506.3,8.0]
[1747004586346,9.28762194,2507.8,2506.3,14.97807488]
[1747004586347,3.98908876,2506.9,2506.3,14.97807488]
[1747004586522,0.759,2507.1,2506.3,14.93818097]
[1747004586840,3.98878537,2507.1,2506.3,16.50199907]
[1747004587037,3.98883863,2507.0,2506.3,16.50199907]
[1747004587200,3.98871108,2507.1,2506.3,16.50199907]
[1747004587529,4.03834753,2507.4,2506.3,16.50199907]
[1747004587530,3.98887327,2507.0,2506.3,16.50199907]
[1747004587735,3.98908221,2506.9,2506.3,16.50199907]
[1747004588404,3.98836328,2507.3,2506.3,16.50199907]
[1747004588603,3.98868873,2507.1,2506.3,16.50199907]
[1747004588905,3.98898408,2507.0,2506.3,16.50199907]
[1747004589132,3.98908269,2506.9,2506.3,16.50199907]
[1747004589334,3.98908269,2506.9,2506.3,67.00199907]
[1747004589637,3.9892389,2506.8,2506.3,67.00199907]
[1747004590218,4.82017054,2507.0,2506.3,67.00199907]
[1747004590413,3.98887054,2507.0,2506.3,16.50199907]
[1747004590709,3.98875631,2507.1,2506.3,16.50199907]
[1747004591747,3.98855054,2507.2,2506.3,16.50199907]
[1747004592401,3.98875433,2507.1,2506.3,16.50199907]
[1747004592763,3.98885973,2507.0,2506.3,16.50199907]
[1747004593699,3.98907455,2506.9,2506.3,15.95199907]
[1747004593905,0.7714,2506.7,2506.3,7.17639907]
[1747004594118,3.98919388,2506.8,2506.3,50.90671688]
[1747004594338,3.98919388,2506.8,2506.3,66.22639907]
[1747004594542,3.98905093,2506.9,2506.3,66.22639907]
[1747004594753,3.98905093,2506.9,2506.3,15.72639907]
[1747004595321,0.7714,2507.0,2506.3,63.57939907]
[1747004595505,0.7714,2507.0,2506.3,49.11261207]
[1747004596106,3.98924595,2506.8,2506.3,49.11261207]
[1747004596400,3.98924595,2506.8,2506.3,15.72539907]
[1747004596600,3.98933458,2506.7,2506.3,15.72539907]
[1747004596840,3.98938976,2506.7,2506.3,15.72539907]
[1747004598120,3.98921356,2506.8,2506.3,15.72539907]
[1747004598322,4.76029349,2507.0,2506.3,16.51619907]
[1747004599145,3.98889349,2507.0,2506.3,16.51619907]
[1747004599441,0.8046,2507.2,2506.3,16.51619907]
[1747004599682,0.8046,2507.2,2506.3,67.01619907]
[1747004599825,4.7932175,2507.2,2506.3,67.01619907]
[1747004600020,4.7932175,2507.2,2506.3,16.51619907]
[1747004600726,4.79322779,2507.2,2506.3,16.51619907]
[1747004603071,4.79312062,2507.2,2506.3,16.51619907]
[1747004603270,3.98890969,2507.0,2506.3,16.51619907]
[1747004603631,3.9886733,2507.1,2506.3,16.51619907]
[1747004603867,0.8046,2507.2,2506.3,16.51619907]
[1747004604069,3.98869532,2507.1,2506.3,67.01619907]
[1747004604365,3.98869532,2507.1,2506.3,16.51619907]
[1747004604745,3.98887362,2507.0,2506.3,16.51619907]
[1747004607162,3.98873979,2507.1,2506.3,16.51619907]
[1747004607873,3.9887313,2507.1,2506.3,16.51619907]
[1747004610144,3.9887313,2507.1,2506.3,26.71619907]
[1747004611401,3.98884546,2507.0,2506.3,26.15919907]
[1747004611540,3.98884546,2507.0,2506.3,26.70919907]
[1747004611941,4.8094873,2506.7,2506.3,37.10040407]
[1747004612201,0.8201,2506.7,2506.3,37.39047807]
[1747004612337,0.8201,2506.7,2506.3,45.94047807]
[1747004612540,3.98948991,2506.6,2506.3,42.74747807]
[1747004612845,3.98965734,2506.5,2506.3,23.87358097]
[1747004613966,3.98965734,2506.5,2506.3,0.07]
[1747004613967,4.03978614,2506.4,2506.3,0.07]
[1747004614175,4.83658614,2506.4,2506.3,0.07]
[1747004614481,0.7968,2506.0,2505.8,8.0]
[1747004614703,0.803,2506.2,2505.9,46.645272]
[1747004614905,0.803,2506.2,2505.8,9.3603581]
[1747004615217,0.803,2506.0,2505.5,2.643]
[1747004615415,0.803,2506.0,2505.4,5.60358097]
[1747004615709,0.803,2506.0,2505.5,47.48712492]
[1747004615915,0.803,2506.0,2505.4,6.16393907]
[1747004616112,4.79351076,2506.0,2505.5,37.73708301]
[1747004616311,3.99059183,2505.9,2505.4,6.16393907]
[1747004616607,3.99059183,2505.9,2505.5,8.03990802]
[1747004617470,0.803,2506.0,2505.6,0.55]
[1747004617665,0.803,2506.0,2505.7,8.0399039]
[1747004617863,0.803,2506.0,2505.9,8.0]
[1747004618067,4.79342298,2506.0,2505.9,18.797825]
[1747004618313,4.79342298,2506.0,2505.9,8.0]
[1747004622067,0.7801,2506.3,2506.0,8.0]
[1747004622291,0.05,2506.4,2506.2,8.0]
[1747004622628,0.05,2506.4,2506.2,8.35647777]
[1747004622799,0.05,2506.4,2506.3,48.955122]
[1747004623537,0.05,2506.4,2506.3,8.31658097]
[1747004623945,4.03978614,2506.4,2506.3,49.12123897]
[1747004624228,4.79218614,2506.4,2506.3,11.35893897]
[1747004624587,4.79218614,2506.4,2506.3,8.31658097]
[1747004624788,4.79218614,2506.4,2505.5,1.42038471]
[1747004624789,0.8085,2505.6,2505.3,0.31658097]
[1747004624988,0.8085,2505.6,2505.4,16.881738]
[1747004625302,0.8085,2505.6,2505.4,1.6881738]
[1747004625303,4.79956675,2505.6,2505.4,1.6881738]
[1747004625504,4.79956675,2505.6,2505.5,8.0]
[1747004626204,4.79956675,2505.6,2505.2,2.642]
[1747004626393,4.79956675,2505.6,2505.3,8.0]
[1747004628492,4.79956675,2505.6,2505.2,2.642]
[1747004628493,4.79956675,2505.6,2505.2,8.0]
[1747004628692,4.79956675,2505.6,2505.2,9.1195]
[1747004629835,0.8085,2505.6,2505.3,0.07]
[1747004630327,0.8085,2505.6,2505.5,8.0]
[1747004630491,4.8234144,2505.8,2505.5,22.644085]
[1747004630698,4.8234144,2505.8,2505.3,0.07]
[1747004630942,4.8234144,2505.8,2505.3,1.33592]
[1747004631125,3.9912197,2505.5,2505.3,0.07]
[1747004631429,3.9912197,2505.5,2505.2,9.1195]
[1747004631430,3.9912197,2505.5,2505.2,8.0]
[1747004631928,3.99113789,2505.6,2505.2,8.0]
[1747004632331,3.99098343,2505.7,2505.2,8.0]
[1747004632511,0.8326,2505.8,2505.3,1.10441293]
[1747004632831,4.82342845,2505.8,2505.5,8.0]
[1747004633130,4.82342845,2505.8,2505.3,1.0645]
[1747004633336,4.82342845,2505.8,2505.3,1.10441054]
[1747004634195,3.99091855,2505.7,2505.3,1.42099151]
[1747004635729,3.99015013,2506.2,2505.4,10.69918012]
[1747004635952,3.99015013,2506.2,2505.6,0.55]
[1747004636095,3.99015013,2506.2,2505.7,8.03990402]
[1747004636696,3.99015013,2506.2,2505.7,8.10990402]
[1747004637110,0.8663,2506.4,2505.7,10.75190402]
[1747004637314,3.99001331,2506.3,2505.9,8.0]
[1747004637618,0.8663,2506.4,2506.1,8.0]
[1747004637814,4.85610069,2506.4,2506.3,8.0]
[1747004638130,0.05,2506.4,2506.3,30.261864]
[1747004638321,0.05,2506.4,2506.3,8.0]
[1747004638644,0.05,2506.4,2506.3,8.8316581]
[1747004638841,0.05,2506.4,2506.3,31.2633]
[1747004639043,0.05,2506.4,2506.3,25.250651]
[1747004639438,0.05,2506.4,2506.3,8.0]
[1747004640311,0.05,2506.4,2506.3,11.54847623]
[1747004640557,0.05,2506.4,2506.3,62.77898097]
[1747004640722,0.05,2506.4,2506.3,66.88120848]
[1747004641654,0.05,2506.4,2506.3,16.38120848]
[1747004641826,0.05,2506.4,2506.3,12.27898097]
[1747004643852,0.05,2506.4,2506.3,62.77898097]
[1747004644856,0.05,2506.4,2506.3,12.27898097]
[1747004646313,0.05,2506.4,2506.3,22.47898097]
[1747004646952,0.05,2506.4,2506.3,72.97898097]
[1747004647151,0.05,2506.4,2506.3,77.08120848]
[1747004648011,0.05,2506.4,2506.3,26.58120848]
[1747004653363,0.05,2506.4,2506.3,29.22120848]
[1747004653734,0.05,2506.4,2506.3,29.22020848]
[1747004654376,0.05,2506.4,2506.3,27.89980848]
[1747004654875,0.05,2506.4,2506.3,28.44980848]
[1747004655173,0.05,2506.4,2506.3,78.94980848]
[1747004655481,0.05,2506.4,2506.3,19.06090848]
[1747004655680,0.05,2506.4,2506.3,69.56090848]
[1747004656385,0.05,2506.4,2506.3,19.06090848]
[1747004658253,0.05,2506.4,2506.3,29.26090848]
[1747004662201,0.05,2506.4,2506.3,31.65890848]
[1747004662361,0.05,2506.4,2506.3,29.26090848]
[1747004667775,0.05,2506.4,2506.3,29.25890848]
[1747004670227,0.05,2506.4,2506.3,19.05890848]
[1747004670976,0.05,2506.4,2506.3,69.55890848]
[1747004671441,0.05,2506.4,2506.3,19.05890848]
[1747004672213,0.05,2506.4,2506.3,20.96635099]
[1747004672414,0.05,2506.4,2506.3,69.55890848]
[1747004672614,0.05,2506.4,2506.3,19.05890848]
[1747004672831,0.05,2506.4,2506.3,20.96635099]
[1747004673332,0.7525,2507.2,2506.6,0.55]
[1747004673537,0.7525,2507.2,2506.8,0.55]
[1747004673712,0.7525,2507.2,2507.0,8.55]
[1747004674046,0.7525,2507.2,2506.9,5.276]
[1747004674047,4.74104438,2507.2,2506.9,2.638]
[1747004674243,4.74104438,2507.2,2507.0,23.513908]
[1747004674402,4.74104438,2507.2,2507.1,23.593962]
[1747004674737,0.7972,2507.1,2506.7,8.31658097]
[1747004674950,0.7972,2507.1,2507.0,8.0]
[1747004677074,0.8472,2507.4,2507.0,8.0]
[1747004677217,0.8472,2507.4,2507.2,8.0]
[1747004677422,0.8472,2507.4,2507.3,27.692949]
[1747004677922,0.8472,2507.4,2507.3,8.0]
[1747004678935,0.8472,2507.4,2507.3,42.3234591]
[1747004679459,0.05,2507.4,2507.3,43.19004007]
[1747004680084,0.05,2507.4,2507.3,9.69823907]
[1747004680642,0.05,2507.4,2507.3,60.19823907]
[1747004680850,0.05,2507.4,2507.3,58.87454107]
[1747004681178,0.05,2507.4,2507.3,9.14823907]
[1747004681380,0.05,2507.4,2507.3,9.69823907]
[1747004682549,0.05,2507.4,2507.3,19.89823907]
[1747004682867,0.05,2507.4,2507.3,20.72263907]
[1747004683185,0.8058,2508.0,2507.4,8.55]
[1747004683342,0.8058,2508.0,2507.6,8.55]
[1747004685460,4.036605,2508.4,2508.3,8.0]
[1747004685877,4.854105,2508.4,2508.3,8.0]
[1747004686078,4.854105,2508.4,2508.3,12.462975]
[1747004686295,4.854105,2508.4,2508.3,8.0]
[1747004691995,6.25334446,2508.4,2508.3,8.0]
[1747004696089,4.854105,2508.4,2508.3,8.0]
[1747004699870,5.07732067,2508.4,2508.3,8.0]
[1747004712493,4.25982067,2508.4,2508.3,8.0]
[1747004712701,0.27321567,2508.4,2508.3,8.8]
[1747004713001,4.25982067,2508.4,2508.3,8.8]
[1747004713162,4.25982067,2508.4,2508.3,33.382572]
[1747004713362,4.036605,2508.4,2508.3,32.807172]
[1747004713977,4.036605,2508.4,2508.3,8.8]
[1747004714175,4.036605,2508.4,2508.3,8.0]
[1747004719394,3.98724082,2508.0,2507.9,0.31658097]
[1747004719599,4.81664082,2508.0,2507.9,0.31658097]
[1747004720784,2.22863946,2508.0,2507.4,0.7654]
[1747004720994,3.98797935,2507.6,2507.4,0.7654]
[1747004721237,3.98803589,2507.5,2507.4,8.7654]
[1747004721688,3.98803589,2507.5,2507.4,17.957781]
[1747004722421,3.98803589,2507.5,2507.4,8.7654]
[1747004722584,3.98803589,2507.5,2507.4,10.10871]
[1747004723382,3.98803589,2507.5,2507.4,8.0]
[1747004723782,3.98780623,2507.7,2507.4,9.40884]
[1747004723983,3.98790963,2507.6,2507.4,9.40884]
[1747004724781,1.39923946,2508.3,2507.4,9.40884]
[1747004724782,0.05,2508.4,2507.5,0.8695811]
[1747004724979,0.05,2508.4,2507.7,0.8297]
[1747004725220,3.98771782,2507.7,2507.6,1.02784211]
[1747004725520,3.98728376,2508.0,2507.8,8.0]
[1747004725719,3.98747745,2507.9,2507.6,9.02784211]
[1747004725910,3.98747745,2507.9,2507.7,1.16588421]
[1747004726937,3.98708185,2508.1,2507.7,1.16588421]
[1747004727102,3.98680513,2508.3,2507.9,8.0]
[1747004727436,4.03667032,2508.4,2507.9,0.03986903]
[1747004727645,3.98681733,2508.3,2508.1,8.0]
[1747004727806,3.98681347,2508.3,2508.1,10.63]
[1747004727992,0.05,2508.4,2508.2,0.7514]
[1747004728193,0.05,2508.4,2508.3,27.3012681]
[1747004729036,0.05,2508.4,2508.3,9.1697981]
[1747004729191,0.05,2508.4,2508.3,10.82764342]
[1747004729393,0.05,2508.4,2508.3,10.78777907]
[1747004729753,0.05,2508.4,2508.3,61.28777907]
[1747004730418,0.05,2508.4,2508.3,20.98777907]
[1747004730934,4.036605,2508.4,2508.3,9.06798097]
[1747004731429,4.036605,2508.4,2508.3,2.38894997]
[1747004731591,4.036605,2508.4,2508.3,10.56373536]
[1747004731786,4.036605,2508.4,2508.3,0.17478539]
[1747004732027,3.98708185,2508.1,2508.0,2.94658097]
[1747004732328,3.98708185,2508.1,2508.0,0.46404341]
[1747004733725,3.98708185,2508.1,2508.0,0.14746244]
[1747004733945,3.98755881,2507.8,2507.7,8.0]
[1747004735866,3.98755881,2507.8,2507.7,8.14746244]
[1747004737272,3.98755881,2507.8,2507.7,13.97955944]
[1747004737475,3.98755881,2507.8,2507.7,11.51841344]
[1747004738163,4.76965881,2507.8,2507.7,0.14746244]
[1747004738466,4.76965881,2507.8,2507.5,8.0]
[1747004738467,3.98787685,2507.6,2507.5,8.0]
[1747004738668,3.98787685,2507.6,2507.5,10.050956]
[1747004739575,0.7821,2507.8,2507.5,8.0]
[1747004739869,3.98771782,2507.7,2507.6,15.760968]
[1747004740065,3.98771782,2507.7,2507.6,8.0]
[1747004743438,3.98771782,2507.7,2507.6,12.191112]
[1747004743875,3.98771782,2507.7,2507.6,8.0]
[1747004744256,3.9876603,2507.8,2507.7,8.0]
[1747004744564,3.98743528,2507.9,2507.7,8.0]
[1747004744565,3.98744165,2507.9,2507.8,8.0]
[1747004744755,3.98744165,2507.9,2507.8,21.624451]
[1747004744952,3.98744165,2507.9,2507.8,8.0]
[1747004745342,5.38668111,2507.9,2507.8,8.0]
[1747004745677,3.98851308,2507.2,2507.1,0.7586]
[1747004745880,3.98851308,2507.2,2507.1,5.259]
[1747004746779,3.98851308,2507.2,2507.0,8.0]
[1747004747101,3.98851308,2507.2,2507.1,10.628]
[1747004748990,3.98851308,2507.2,2507.1,13.025904]
[1747004749191,3.98851308,2507.2,2507.1,10.397904]
[1747004750666,3.98851308,2507.2,2507.1,8.0]
[1747004750902,3.98851308,2507.2,2507.1,12.27921661]
[1747004752100,3.98851308,2507.2,2507.1,8.14531261]
[1747004752289,3.98819494,2507.4,2507.2,8.0]
[1747004752463,0.8022,2507.5,2507.1,8.14531261]
[1747004752663,3.98838195,2507.3,2507.1,8.0]
[1747004752900,3.98838195,2507.3,2507.2,0.14531261]
[1747004754307,3.98838195,2507.3,2507.2,3.78641461]
[1747004754591,3.98838195,2507.3,2507.2,0.14531261]
[1747004754788,4.81228195,2507.3,2507.2,0.14531261]
[1747004755014,3.98854876,2507.2,2506.6,5.259]
[1747004755171,3.98929168,2506.8,2506.7,8.0]
[1747004755375,3.98929168,2506.8,2506.7,8.13647634]
[1747004755574,3.98929168,2506.8,2506.7,0.13647634]
[1747004755774,3.98930865,2506.7,2506.6,5.259]
[1747004756078,3.98930865,2506.7,2506.6,8.0]
[1747004756450,0.7509,2507.7,2507.3,8.0]
[1747004756627,3.98787685,2507.6,2507.2,8.0]
[1747004756933,3.98822868,2507.4,2507.2,8.0]
[1747004757092,3.988354,2507.3,2507.2,8.0]
[1747004759431,3.98823872,2507.4,2507.2,8.0]
[1747004759835,3.988354,2507.3,2507.2,8.0]
[1747004761895,3.9879833,2507.6,2507.2,8.0]
[1747004762109,3.98805492,2507.5,2507.2,8.0]
[1747004762341,0.7509,2507.7,2507.2,8.0]
[1747004762902,3.98815598,2507.5,2507.2,8.0]
[1747004763601,3.98821133,2507.4,2507.2,8.0]
[1747004764545,4.73863768,2507.7,2507.2,9.4383881]
[1747004764751,3.98795754,2507.6,2507.2,9.4383881]
[1747004765127,3.98758968,2507.8,2507.7,7.975677]
[1747004765424,3.98758968,2507.8,2507.7,8.0]
[1747004765754,3.98758968,2507.8,2507.7,8.13518754]
[1747004767909,4.76568968,2507.8,2507.7,8.13518754]
[1747004768754,4.98911002,2507.8,2507.7,8.13518754]
[1747004769145,4.21101002,2507.8,2507.7,8.13518754]
[1747004769847,3.98758968,2507.8,2507.7,8.13518754]
[1747004770154,3.98745928,2507.9,2507.8,8.0]
[1747004770367,3.98745928,2507.9,2507.8,0.13386753]
[1747004770717,3.98745928,2507.9,2507.5,0.03987828]
[1747004770919,1.635,2508.0,2507.7,0.8085]
[1747004771117,1.635,2508.0,2507.9,8.7745]
[1747004771352,1.635,2508.0,2507.9,53.23873348]
[1747004772563,1.635,2508.0,2507.9,9.77380448]
[1747004772768,1.635,2508.0,2507.9,9.81367359]
[1747004773599,1.635,2508.0,2507.9,9.77380448]
[1747004773757,1.635,2508.0,2507.9,10.87003441]